[Event "Titled Tuesday Blitz March 07 Early 2023"]
[White "Rios Escobar, Adan"]
[Black "Bashirli, Saadat"]
[WhiteFideId "3403645"]
[BlackFideId "13429990"]
[WhiteElo "2372"]
[BlackElo "1408"]
[Result "1/2-1/2"]
[Round "11"]
[TimeControl "180+2"]
[Date "2023.03.07"]
[WhiteClock "0:00:06"]
[BlackClock "0:00:38"]

1. d4 {[%clk 0:02:57]}  d5 {[%clk 0:02:57]} 2. g3 {[%clk 0:02:56]}  e6 {[%clk 0:02:54]} 3. Bg2 {[%clk 0:02:52]}  c5 {[%clk 0:02:50]} 4. Nf3 {[%clk 0:02:52]}  Nf6 {[%clk 0:02:49]} 5. O-O {[%clk 0:02:53]}  Nc6 {[%clk 0:02:48]} 6. c4 {[%clk 0:02:53]}  dxc4 {[%clk 0:02:46]} 7. dxc5 {[%clk 0:02:50]}  Qxd1 {[%clk 0:02:47]} 8. Rxd1 {[%clk 0:02:50]}  Bxc5 {[%clk 0:02:47]} 9. Nbd2 {[%clk 0:02:50]}  Ng4 {[%clk 0:02:44]} 10. Ne4 {[%clk 0:02:49]}  Be7 {[%clk 0:02:40]} 11. h3 {[%clk 0:02:49]}  Nf6 {[%clk 0:02:38]} 12. Ned2 {[%clk 0:02:44]}  c3 {[%clk 0:02:27]} 13. bxc3 {[%clk 0:02:45]}  O-O {[%clk 0:02:28]} 14. Nb3 {[%clk 0:02:43]}  e5 {[%clk 0:02:26]} 15. c4 {[%clk 0:02:40]}  Be6 {[%clk 0:02:24]} 16. Bb2 {[%clk 0:02:35]}  Bxc4 {[%clk 0:02:20]} 17. Nxe5 {[%clk 0:02:35]}  Nxe5 {[%clk 0:02:19]} 18. Bxe5 {[%clk 0:02:35]}  Bxe2 {[%clk 0:02:17]} 19. Re1 {[%clk 0:02:35]}  Bc4 {[%clk 0:02:17]} 20. Bxb7 {[%clk 0:02:30]}  Rad8 {[%clk 0:02:10]} 21. Na5 {[%clk 0:02:30]}  Be6 {[%clk 0:02:08]} 22. Nc6 {[%clk 0:02:29]}  Rd7 {[%clk 0:02:08]} 23. Nxe7+ {[%clk 0:02:29]}  Rxe7 {[%clk 0:02:09]} 24. Bg2 {[%clk 0:02:23]}  Rc8 {[%clk 0:02:05]} 25. a4 {[%clk 0:02:11]}  a5 {[%clk 0:01:56]} 26. Rab1 {[%clk 0:02:08]}  h6 {[%clk 0:01:50]} 27. Bxf6 {[%clk 0:01:56]}  gxf6 {[%clk 0:01:51]} 28. Rb5 {[%clk 0:01:56]}  Ra7 {[%clk 0:01:47]} 29. Rd1 {[%clk 0:01:44]}  Bd7 {[%clk 0:01:42]} 30. Rb7 {[%clk 0:01:25]}  Rxb7 {[%clk 0:01:32]} 31. Bxb7 {[%clk 0:01:26]}  Rc7 {[%clk 0:01:33]} 32. Ba6 {[%clk 0:00:45]}  Bxa4 {[%clk 0:01:31]} 33. Ra1 {[%clk 0:00:45]}  Ra7 {[%clk 0:01:30]} 34. Rxa4 {[%clk 0:00:26]}  Rxa6 {[%clk 0:01:30]} 35. Kg2 {[%clk 0:00:27]}  Kf8 {[%clk 0:01:29]} 36. Kf3 {[%clk 0:00:27]}  Kg7 {[%clk 0:01:28]} 37. Kg4 {[%clk 0:00:27]}  Kg6 {[%clk 0:01:28]} 38. Kh4 {[%clk 0:00:25]}  f5 {[%clk 0:01:24]} 39. f4 {[%clk 0:00:21]}  f6 {[%clk 0:01:20]} 40. g4 {[%clk 0:00:20]}  fxg4 {[%clk 0:01:20]} 41. hxg4 {[%clk 0:00:21]}  f5 {[%clk 0:01:08]} 42. gxf5+ {[%clk 0:00:09]}  Kxf5 {[%clk 0:01:09]} 43. Kh5 {[%clk 0:00:09]}  Rb6 {[%clk 0:00:38]} 44. Rxa5+ {[%clk 0:00:08]}  Kxf4 {[%clk 0:00:38]} 45. Ra4+ {[%clk 0:00:09]}  Ke3 {[%clk 0:00:35]} 46. Ra3+ {[%clk 0:00:09]}  Ke4 {[%clk 0:00:34]} 47. Ra4+ {[%clk 0:00:10]}  Ke5 {[%clk 0:00:35]} 48. Ra5+ {[%clk 0:00:10]}  Kd4 {[%clk 0:00:36]} 49. Ra4+ {[%clk 0:00:10]}  Kc5 {[%clk 0:00:36]} 50. Rg4 {[%clk 0:00:06]}  Rd6 {[%clk 0:00:34]} 51. Rg6 {[%clk 0:00:06]}  Rxg6 {[%clk 0:00:34]} 52. Kxg6 {[%clk 0:00:06]}  h5 {[%clk 0:00:35]} 53. Kg5 {[%clk 0:00:07]}  h4 {[%clk 0:00:36]} 54. Kg4 {[%clk 0:00:07]}  h3 {[%clk 0:00:36]} 55. Kg3 {[%clk 0:00:06]}  h2 {[%clk 0:00:37]} 56. Kg2 {[%clk 0:00:06]}  h1=Q+ {[%clk 0:00:38]} 57. Kxh1 {[%clk 0:00:06]} 1/2-1/2


[Site "https://www.chess.com"]

[Event "Titled Tuesday Blitz March 07 Early 2023"]
[White "Bongo Akanga Ndjila, Barthelemy"]
[Black "Tarasova, Viktoriya"]
[WhiteFideId "10609431"]
[BlackFideId "4175840"]
[WhiteElo "1768"]
[BlackElo "2182"]
[Result "0-1"]
[Round "11"]
[TimeControl "180+2"]
[Date "2023.03.07"]
[WhiteClock "0:00:02"]
[BlackClock "0:01:09"]

1. d4 {[%clk 0:02:54]}  Nf6 {[%clk 0:02:58]} 2. c4 {[%clk 0:02:54]}  e6 {[%clk 0:02:59]} 3. Nf3 {[%clk 0:02:54]}  b6 {[%clk 0:02:59]} 4. a3 {[%clk 0:02:53]}  Bb7 {[%clk 0:02:58]} 5. Nc3 {[%clk 0:02:54]}  d5 {[%clk 0:02:58]} 6. cxd5 {[%clk 0:02:53]}  Nxd5 {[%clk 0:02:58]} 7. Qc2 {[%clk 0:02:54]}  Be7 {[%clk 0:02:58]} 8. e4 {[%clk 0:02:54]}  Nxc3 {[%clk 0:02:58]} 9. bxc3 {[%clk 0:02:54]}  O-O {[%clk 0:02:59]} 10. Bd3 {[%clk 0:02:54]}  c5 {[%clk 0:02:59]} 11. O-O {[%clk 0:02:53]}  cxd4 {[%clk 0:02:53]} 12. cxd4 {[%clk 0:02:52]}  Nd7 {[%clk 0:02:53]} 13. Re1 {[%clk 0:02:50]}  Rc8 {[%clk 0:02:52]} 14. Qe2 {[%clk 0:02:50]}  Nf6 {[%clk 0:02:47]} 15. Bg5 {[%clk 0:02:22]}  h6 {[%clk 0:02:44]} 16. Bd2 {[%clk 0:02:19]}  Nh7 {[%clk 0:02:36]} 17. Ba6 {[%clk 0:02:00]}  Qc7 {[%clk 0:02:25]} 18. Rac1 {[%clk 0:01:58]}  Qb8 {[%clk 0:02:25]} 19. Ne5 {[%clk 0:01:52]}  Rxc1 {[%clk 0:02:17]} 20. Rxc1 {[%clk 0:01:50]}  Rc8 {[%clk 0:02:17]} 21. Bxb7 {[%clk 0:00:56]}  Qxb7 {[%clk 0:02:16]} 22. Rxc8+ {[%clk 0:00:56]}  Qxc8 {[%clk 0:02:16]} 23. Qb5 {[%clk 0:00:19]}  Nf6 {[%clk 0:02:02]} 24. g3 {[%clk 0:00:16]}  Nxe4 {[%clk 0:02:02]} 25. Be3 {[%clk 0:00:12]}  Bxa3 {[%clk 0:01:55]} 26. Qa4 {[%clk 0:00:11]}  Bd6 {[%clk 0:01:55]} 27. Qxa7 {[%clk 0:00:11]}  Bxe5 {[%clk 0:01:55]} 28. dxe5 {[%clk 0:00:11]}  b5 {[%clk 0:01:51]} 29. Qb6 {[%clk 0:00:11]}  Nc3 {[%clk 0:01:50]} 30. Bd4 {[%clk 0:00:09]}  Ne2+ {[%clk 0:01:48]} 31. Kg2 {[%clk 0:00:10]}  Nxd4 {[%clk 0:01:45]} 32. Qxd4 {[%clk 0:00:09]}  Qb7+ {[%clk 0:01:45]} 33. f3 {[%clk 0:00:06]}  b4 {[%clk 0:01:45]} 34. Qb2 {[%clk 0:00:06]}  b3 {[%clk 0:01:45]} 35. Kf2 {[%clk 0:00:06]}  Qb4 {[%clk 0:01:38]} 36. f4 {[%clk 0:00:05]}  Qc5+ {[%clk 0:01:28]} 37. Ke2 {[%clk 0:00:05]}  Qc4+ {[%clk 0:01:24]} 38. Kd2 {[%clk 0:00:05]}  g6 {[%clk 0:01:18]} 39. Qc3 {[%clk 0:00:03]}  Qd5+ {[%clk 0:01:18]} 40. Kc1 {[%clk 0:00:03]}  Qh1+ {[%clk 0:01:16]} 41. Kb2 {[%clk 0:00:03]}  Qxh2+ {[%clk 0:01:16]} 42. Kxb3 {[%clk 0:00:03]}  Qg2 {[%clk 0:01:13]} 43. Kb4 {[%clk 0:00:03]}  Qb7+ {[%clk 0:01:13]} 44. Ka5 {[%clk 0:00:02]}  h5 {[%clk 0:01:09]} 0-1


[Site "https://www.chess.com"]

[Event "Titled Tuesday Blitz March 07 Early 2023"]
[White "lisjakzlatko1"]
[Black "Rodchenkov, Sergey D."]
[BlackFideId "4168712"]
[WhiteElo "2198"]
[BlackElo "2277"]
[Result "0-1"]
[Round "11"]
[TimeControl "180+2"]
[Date "2023.03.07"]
[WhiteClock "0:00:10"]
[BlackClock "0:00:50"]

1. d4 {[%clk 0:03:00]}  d5 {[%clk 0:03:00]} 2. Nc3 {[%clk 0:02:59]}  Nf6 {[%clk 0:03:00]} 3. Bf4 {[%clk 0:03:00]}  c5 {[%clk 0:02:58]} 4. e3 {[%clk 0:02:59]}  cxd4 {[%clk 0:02:58]} 5. exd4 {[%clk 0:02:55]}  Bg4 {[%clk 0:02:59]} 6. f3 {[%clk 0:02:52]}  Bd7 {[%clk 0:02:59]} 7. Nb5 {[%clk 0:02:46]}  Bxb5 {[%clk 0:02:58]} 8. Bxb5+ {[%clk 0:02:38]}  Nc6 {[%clk 0:02:59]} 9. c3 {[%clk 0:02:32]}  e6 {[%clk 0:02:56]} 10. Qe2 {[%clk 0:02:12]}  Bd6 {[%clk 0:02:52]} 11. Nh3 {[%clk 0:02:09]}  O-O {[%clk 0:02:40]} 12. O-O-O {[%clk 0:02:03]}  Be7 {[%clk 0:02:30]} 13. g4 {[%clk 0:02:00]}  a6 {[%clk 0:02:14]} 14. Bd3 {[%clk 0:01:59]}  b5 {[%clk 0:02:13]} 15. Ng5 {[%clk 0:01:47]}  b4 {[%clk 0:02:09]} 16. Kb1 {[%clk 0:01:15]}  bxc3 {[%clk 0:02:09]} 17. bxc3 {[%clk 0:01:15]}  Bd6 {[%clk 0:02:00]} 18. Bc1 {[%clk 0:01:11]}  Rb8+ {[%clk 0:01:52]} 19. Ka1 {[%clk 0:01:10]}  Qa5 {[%clk 0:01:41]} 20. Qc2 {[%clk 0:01:04]}  h6 {[%clk 0:01:29]} 21. h4 {[%clk 0:01:02]}  Rfc8 {[%clk 0:01:28]} 22. Be3 {[%clk 0:00:49]}  Qa3 {[%clk 0:01:11]} 23. Rb1 {[%clk 0:00:42]}  Nb4 {[%clk 0:01:07]} 24. Qd2 {[%clk 0:00:20]}  Rxc3 {[%clk 0:01:06]} 25. Rhd1 {[%clk 0:00:10]}  Nc2+ {[%clk 0:00:50]} 0-1


[Site "https://www.chess.com"]

[Event "Titled Tuesday Blitz March 07 Early 2023"]
[White "Jovic, Stanoje"]
[Black "Zampronha, Wladimir Camilo"]
[WhiteFideId "905020"]
[BlackFideId "2103087"]
[WhiteElo "2236"]
[BlackElo "2176"]
[Result "1-0"]
[Round "11"]
[TimeControl "180+2"]
[Date "2023.03.07"]
[WhiteClock "0:01:28"]
[BlackClock "0:00:48"]

1. c4 {[%clk 0:03:00]}  Nf6 {[%clk 0:02:58]} 2. g3 {[%clk 0:03:01]}  e6 {[%clk 0:02:59]} 3. Bg2 {[%clk 0:03:01]}  d5 {[%clk 0:03:00]} 4. Nf3 {[%clk 0:03:01]}  Be7 {[%clk 0:03:00]} 5. O-O {[%clk 0:03:01]}  O-O {[%clk 0:03:00]} 6. b3 {[%clk 0:03:01]}  c5 {[%clk 0:03:00]} 7. cxd5 {[%clk 0:03:00]}  exd5 {[%clk 0:03:00]} 8. d4 {[%clk 0:02:59]}  Nc6 {[%clk 0:03:00]} 9. dxc5 {[%clk 0:02:59]}  Bxc5 {[%clk 0:03:01]} 10. Bb2 {[%clk 0:02:57]}  Be6 {[%clk 0:02:57]} 11. Nc3 {[%clk 0:02:56]}  Ne4 {[%clk 0:02:53]} 12. Na4 {[%clk 0:02:49]}  Be7 {[%clk 0:02:24]} 13. Rc1 {[%clk 0:02:47]}  Qa5 {[%clk 0:02:11]} 14. a3 {[%clk 0:02:39]}  Rac8 {[%clk 0:01:36]} 15. b4 {[%clk 0:02:38]}  Qb5 {[%clk 0:01:36]} 16. Re1 {[%clk 0:02:29]}  Rfd8 {[%clk 0:01:34]} 17. Bf1 {[%clk 0:02:29]}  Nb8 {[%clk 0:01:23]} 18. e3 {[%clk 0:02:19]}  Qd7 {[%clk 0:01:18]} 19. Ne5 {[%clk 0:02:15]}  Qe8 {[%clk 0:01:12]} 20. f3 {[%clk 0:02:04]}  Nd6 {[%clk 0:01:07]} 21. Nc5 {[%clk 0:01:59]}  b6 {[%clk 0:01:00]} 22. Nxe6 {[%clk 0:01:59]}  fxe6 {[%clk 0:01:01]} 23. Qd3 {[%clk 0:01:44]}  Bf6 {[%clk 0:00:59]} 24. Rxc8 {[%clk 0:01:38]}  Rxc8 {[%clk 0:00:57]} 25. e4 {[%clk 0:01:38]}  Bxe5 {[%clk 0:00:56]} 26. Bxe5 {[%clk 0:01:36]}  Nc4 {[%clk 0:00:54]} 27. exd5 {[%clk 0:01:33]}  exd5 {[%clk 0:00:46]} 28. Qxd5+ {[%clk 0:01:32]}  Qf7 {[%clk 0:00:46]} 29. Qxf7+ {[%clk 0:01:30]}  Kxf7 {[%clk 0:00:47]} 30. Bxb8 {[%clk 0:01:28]}  Rxb8 {[%clk 0:00:48]} 31. Bxc4+ {[%clk 0:01:28]} 1-0


[Site "https://www.chess.com"]

[Event "Titled Tuesday Blitz March 07 Early 2023"]
[White "Melikhov, Evgeny V."]
[Black "Bas Mas, Jose Joaquin"]
[WhiteFideId "4122046"]
[BlackFideId "22219064"]
[WhiteElo "2158"]
[BlackElo "2233"]
[Result "1-0"]
[Round "11"]
[TimeControl "180+2"]
[Date "2023.03.07"]
[WhiteClock "0:01:37"]
[BlackClock "0:02:04"]

1. d4 {[%clk 0:02:55]}  d5 {[%clk 0:02:59]} 2. c4 {[%clk 0:02:56]}  e6 {[%clk 0:03:00]} 3. Nc3 {[%clk 0:02:56]}  Nf6 {[%clk 0:03:00]} 4. cxd5 {[%clk 0:02:56]}  exd5 {[%clk 0:03:00]} 5. Bg5 {[%clk 0:02:56]}  Nbd7 {[%clk 0:02:55]} 6. e3 {[%clk 0:02:56]}  h6 {[%clk 0:02:55]} 7. Bh4 {[%clk 0:02:56]}  Be7 {[%clk 0:02:55]} 8. Bd3 {[%clk 0:02:55]}  O-O {[%clk 0:02:56]} 9. Nf3 {[%clk 0:02:54]}  b6 {[%clk 0:02:56]} 10. O-O {[%clk 0:02:52]}  Bb7 {[%clk 0:02:57]} 11. Ne5 {[%clk 0:02:41]}  Nxe5 {[%clk 0:02:53]} 12. dxe5 {[%clk 0:02:41]}  Ne4 {[%clk 0:02:53]} 13. Bxe7 {[%clk 0:02:02]}  Qxe7 {[%clk 0:02:50]} 14. f4 {[%clk 0:02:00]}  Nxc3 {[%clk 0:02:41]} 15. bxc3 {[%clk 0:01:59]}  f6 {[%clk 0:02:41]} 16. Qh5 {[%clk 0:01:58]}  fxe5 {[%clk 0:02:32]} 17. fxe5 {[%clk 0:01:58]}  Qg5 {[%clk 0:02:24]} 18. Qxg5 {[%clk 0:01:47]}  hxg5 {[%clk 0:02:25]} 19. Bg6 {[%clk 0:01:42]}  Rxf1+ {[%clk 0:02:20]} 20. Rxf1 {[%clk 0:01:41]}  Bc8 {[%clk 0:02:07]} 21. Bf7+ {[%clk 0:01:39]}  Kh8 {[%clk 0:02:04]} 22. Bxd5 {[%clk 0:01:37]} 1-0


[Site "https://www.chess.com"]

[Event "Titled Tuesday Blitz March 07 Early 2023"]
[White "Rosh Jain"]
[Black "MrAnnihilation"]
[WhiteFideId "25789465"]
[WhiteElo "2233"]
[BlackElo "2349"]
[Result "1-0"]
[Round "11"]
[TimeControl "180+2"]
[Date "2023.03.07"]
[WhiteClock "0:00:32"]
[BlackClock "0:00:03"]

1. e4 {[%clk 0:03:00]}  c5 {[%clk 0:02:58]} 2. Nf3 {[%clk 0:03:00]}  d6 {[%clk 0:02:58]} 3. d4 {[%clk 0:03:01]}  cxd4 {[%clk 0:02:59]} 4. Nxd4 {[%clk 0:03:02]}  Nf6 {[%clk 0:02:59]} 5. Nc3 {[%clk 0:03:03]}  a6 {[%clk 0:02:59]} 6. Bc4 {[%clk 0:03:03]}  e6 {[%clk 0:02:59]} 7. Bb3 {[%clk 0:03:03]}  Nbd7 {[%clk 0:02:59]} 8. O-O {[%clk 0:03:03]}  Nc5 {[%clk 0:02:59]} 9. Qe2 {[%clk 0:03:03]}  Qc7 {[%clk 0:02:55]} 10. f3 {[%clk 0:03:03]}  Be7 {[%clk 0:02:55]} 11. Be3 {[%clk 0:03:02]}  O-O {[%clk 0:02:48]} 12. Rae1 {[%clk 0:03:02]}  b5 {[%clk 0:02:46]} 13. Kh1 {[%clk 0:03:01]}  Bb7 {[%clk 0:02:41]} 14. Qf2 {[%clk 0:03:01]}  Rac8 {[%clk 0:02:37]} 15. Nde2 {[%clk 0:03:01]}  Rfd8 {[%clk 0:02:36]} 16. Rd1 {[%clk 0:03:01]}  b4 {[%clk 0:02:31]} 17. Na4 {[%clk 0:02:59]}  Nxa4 {[%clk 0:02:25]} 18. Bxa4 {[%clk 0:03:00]}  d5 {[%clk 0:02:25]} 19. Bb6 {[%clk 0:02:59]}  Qb8 {[%clk 0:01:59]} 20. Bxd8 {[%clk 0:02:59]}  Rxd8 {[%clk 0:01:59]} 21. exd5 {[%clk 0:02:59]}  Nxd5 {[%clk 0:01:57]} 22. Bb3 {[%clk 0:02:59]}  Bf6 {[%clk 0:01:56]} 23. c3 {[%clk 0:02:59]}  bxc3 {[%clk 0:01:50]} 24. bxc3 {[%clk 0:03:00]}  Nxc3 {[%clk 0:01:41]} 25. Nxc3 {[%clk 0:03:00]}  Bxc3 {[%clk 0:01:42]} 26. Rxd8+ {[%clk 0:03:00]}  Qxd8 {[%clk 0:01:42]} 27. Rc1 {[%clk 0:03:00]}  Bd4 {[%clk 0:01:38]} 28. Rd1 {[%clk 0:02:59]}  e5 {[%clk 0:01:38]} 29. Qd2 {[%clk 0:02:56]}  g5 {[%clk 0:01:35]} 30. Qb4 {[%clk 0:02:56]}  Qc7 {[%clk 0:01:26]} 31. Qc4 {[%clk 0:02:55]}  Qe7 {[%clk 0:01:21]} 32. Re1 {[%clk 0:02:52]}  Qf6 {[%clk 0:01:18]} 33. Qe2 {[%clk 0:02:39]}  h5 {[%clk 0:01:16]} 34. Bc2 {[%clk 0:02:32]}  h4 {[%clk 0:00:53]} 35. Be4 {[%clk 0:02:31]}  Bc8 {[%clk 0:00:53]} 36. Rc1 {[%clk 0:02:27]}  Bd7 {[%clk 0:00:50]} 37. Rc7 {[%clk 0:02:15]}  Bb5 {[%clk 0:00:49]} 38. Rc8+ {[%clk 0:02:07]}  Kg7 {[%clk 0:00:48]} 39. Qe1 {[%clk 0:02:01]}  Qe6 {[%clk 0:00:31]} 40. Rc7 {[%clk 0:01:53]}  Qb6 {[%clk 0:00:16]} 41. Qc1 {[%clk 0:01:46]}  Be3 {[%clk 0:00:14]} 42. Qc2 {[%clk 0:01:36]}  Bf4 {[%clk 0:00:05]} 43. Bd5 {[%clk 0:01:31]}  Be8 {[%clk 0:00:05]} 44. Bb3 {[%clk 0:01:15]}  Qd4 {[%clk 0:00:03]} 45. Re7 {[%clk 0:00:34]}  Qa1+ {[%clk 0:00:03]} 46. Qd1 {[%clk 0:00:34]}  Qxd1+ {[%clk 0:00:03]} 47. Bxd1 {[%clk 0:00:33]}  Kf8 {[%clk 0:00:03]} 48. Ra7 {[%clk 0:00:33]}  Bb5 {[%clk 0:00:03]} 49. Bb3 {[%clk 0:00:32]} 1-0


[Site "https://www.chess.com"]

[Event "Titled Tuesday Blitz March 07 Early 2023"]
[White "Filgueira, Hernan"]
[Black "Torres Dominguez, David"]
[WhiteFideId "101770"]
[BlackFideId "2220857"]
[WhiteElo "2363"]
[BlackElo "1999"]
[Result "1-0"]
[Round "11"]
[TimeControl "180+2"]
[Date "2023.03.07"]
[WhiteClock "0:02:37"]
[BlackClock "0:01:19"]

1. c4 {[%clk 0:03:00]}  e5 {[%clk 0:02:56]} 2. Nc3 {[%clk 0:02:59]}  Nc6 {[%clk 0:02:56]} 3. Nf3 {[%clk 0:03:00]}  f5 {[%clk 0:02:56]} 4. d4 {[%clk 0:02:58]}  e4 {[%clk 0:02:56]} 5. Ng5 {[%clk 0:02:57]}  Bb4 {[%clk 0:02:56]} 6. Nh3 {[%clk 0:02:48]}  Bxc3+ {[%clk 0:02:51]} 7. bxc3 {[%clk 0:02:47]}  d6 {[%clk 0:02:52]} 8. e3 {[%clk 0:02:46]}  Nf6 {[%clk 0:02:52]} 9. Nf4 {[%clk 0:02:46]}  O-O {[%clk 0:02:53]} 10. Ba3 {[%clk 0:02:43]}  b6 {[%clk 0:02:40]} 11. c5 {[%clk 0:02:42]}  d5 {[%clk 0:02:39]} 12. c4 {[%clk 0:02:41]}  Re8 {[%clk 0:01:38]} 13. cxd5 {[%clk 0:02:40]}  Nxd5 {[%clk 0:01:29]} 14. Bc4 {[%clk 0:02:39]}  Ne7 {[%clk 0:01:28]} 15. cxb6 {[%clk 0:02:38]}  axb6 {[%clk 0:01:19]} 16. Bxe7 {[%clk 0:02:37]} 1-0


[Site "https://www.chess.com"]

[Event "Titled Tuesday Blitz March 07 Early 2023"]
[White "Liu, Yi"]
[Black "Thiel, Thomas"]
[WhiteFideId "3210588"]
[BlackFideId "4615964"]
[WhiteElo "2264"]
[BlackElo "2238"]
[Result "1/2-1/2"]
[Round "11"]
[TimeControl "180+2"]
[Date "2023.03.07"]
[WhiteClock "0:00:03"]
[BlackClock "0:00:15"]

1. e4 {[%clk 0:03:00]}  d5 {[%clk 0:02:58]} 2. exd5 {[%clk 0:03:00]}  Nf6 {[%clk 0:02:58]} 3. d4 {[%clk 0:02:59]}  Nxd5 {[%clk 0:02:56]} 4. c4 {[%clk 0:02:59]}  Nb6 {[%clk 0:02:55]} 5. Nf3 {[%clk 0:02:57]}  g6 {[%clk 0:02:53]} 6. Nc3 {[%clk 0:02:55]}  Bg7 {[%clk 0:02:53]} 7. Be3 {[%clk 0:02:54]}  O-O {[%clk 0:02:50]} 8. Be2 {[%clk 0:02:49]}  Bg4 {[%clk 0:02:48]} 9. b3 {[%clk 0:02:45]}  Nc6 {[%clk 0:02:41]} 10. O-O {[%clk 0:01:49]}  Bxf3 {[%clk 0:02:36]} 11. Bxf3 {[%clk 0:01:49]}  Nxd4 {[%clk 0:02:35]} 12. Bxb7 {[%clk 0:01:41]}  Rb8 {[%clk 0:02:35]} 13. Be4 {[%clk 0:01:30]}  f5 {[%clk 0:02:34]} 14. Bd3 {[%clk 0:01:15]}  e5 {[%clk 0:02:30]} 15. Bxd4 {[%clk 0:01:09]}  Qxd4 {[%clk 0:02:19]} 16. Nb5 {[%clk 0:01:06]}  Qc5 {[%clk 0:02:09]} 17. Rb1 {[%clk 0:00:49]}  a5 {[%clk 0:02:06]} 18. Qe2 {[%clk 0:00:40]}  e4 {[%clk 0:02:00]} 19. Bc2 {[%clk 0:00:40]}  c6 {[%clk 0:01:57]} 20. Nc7 {[%clk 0:00:27]}  Qe5 {[%clk 0:01:45]} 21. Na6 {[%clk 0:00:20]}  Ra8 {[%clk 0:01:44]} 22. c5 {[%clk 0:00:21]}  Nd7 {[%clk 0:01:39]} 23. Qc4+ {[%clk 0:00:21]}  Kh8 {[%clk 0:01:36]} 24. Rfd1 {[%clk 0:00:19]}  Qe7 {[%clk 0:01:12]} 25. Rd2 {[%clk 0:00:17]}  Ne5 {[%clk 0:01:11]} 26. Qe2 {[%clk 0:00:14]}  f4 {[%clk 0:01:10]} 27. Bxe4 {[%clk 0:00:11]}  f3 {[%clk 0:01:09]} 28. gxf3 {[%clk 0:00:09]}  Qg5+ {[%clk 0:01:04]} 29. Kf1 {[%clk 0:00:06]}  Nxf3 {[%clk 0:01:01]} 30. Bxf3 {[%clk 0:00:06]}  Rxf3 {[%clk 0:00:56]} 31. Qxf3 {[%clk 0:00:06]}  Qxd2 {[%clk 0:00:54]} 32. Rd1 {[%clk 0:00:06]}  Qc2 {[%clk 0:00:48]} 33. Nc7 {[%clk 0:00:05]}  Rf8 {[%clk 0:00:45]} 34. Qe2 {[%clk 0:00:03]}  Qf5 {[%clk 0:00:27]} 35. Re1 {[%clk 0:00:03]}  Bd4 {[%clk 0:00:24]} 36. Ne6 {[%clk 0:00:02]}  Qxf2+ {[%clk 0:00:24]} 37. Qxf2 {[%clk 0:00:02]}  Rxf2+ {[%clk 0:00:24]} 38. Kg1 {[%clk 0:00:03]}  Rd2+ {[%clk 0:00:21]} 39. Kf1 {[%clk 0:00:03]}  Rf2+ {[%clk 0:00:17]} 40. Kg1 {[%clk 0:00:03]}  Rd2+ {[%clk 0:00:17]} 41. Kf1 {[%clk 0:00:03]}  Rf2+ {[%clk 0:00:15]} 1/2-1/2


[Site "https://www.chess.com"]

[Event "Titled Tuesday Blitz March 07 Early 2023"]
[White "Kohler, Aran"]
[Black "Vargas Rodriguez, Wilver"]
[WhiteFideId "1002856"]
[BlackFideId "3509672"]
[WhiteElo "2242"]
[BlackElo "2238"]
[Result "1-0"]
[Round "11"]
[TimeControl "180+2"]
[Date "2023.03.07"]
[WhiteClock "0:00:32"]
[BlackClock "0:00:02"]

1. d4 {[%clk 0:02:59]}  Nf6 {[%clk 0:02:57]} 2. Nf3 {[%clk 0:02:58]}  c5 {[%clk 0:02:47]} 3. d5 {[%clk 0:02:56]}  d6 {[%clk 0:02:45]} 4. Nc3 {[%clk 0:02:46]}  g6 {[%clk 0:02:43]} 5. e4 {[%clk 0:02:45]}  Bg7 {[%clk 0:02:42]} 6. h3 {[%clk 0:02:45]}  O-O {[%clk 0:02:40]} 7. Be2 {[%clk 0:02:45]}  e6 {[%clk 0:02:40]} 8. Bg5 {[%clk 0:02:36]}  Nbd7 {[%clk 0:02:35]} 9. dxe6 {[%clk 0:02:35]}  fxe6 {[%clk 0:02:33]} 10. Qxd6 {[%clk 0:02:35]}  Qe8 {[%clk 0:02:24]} 11. Bc4 {[%clk 0:02:34]}  Nb6 {[%clk 0:02:15]} 12. Qxc5 {[%clk 0:02:25]}  Bd7 {[%clk 0:02:11]} 13. Qb4 {[%clk 0:02:18]}  Rc8 {[%clk 0:02:00]} 14. Bb3 {[%clk 0:02:17]}  Rxc3 {[%clk 0:01:15]} 15. bxc3 {[%clk 0:02:17]}  Bc6 {[%clk 0:00:58]} 16. Nd4 {[%clk 0:02:01]}  Nxe4 {[%clk 0:00:49]} 17. Be3 {[%clk 0:01:36]}  Nd5 {[%clk 0:00:41]} 18. Bxd5 {[%clk 0:01:28]}  Bxd5 {[%clk 0:00:42]} 19. O-O {[%clk 0:01:28]}  Be5 {[%clk 0:00:31]} 20. c4 {[%clk 0:01:19]}  Bd6 {[%clk 0:00:29]} 21. Qb3 {[%clk 0:01:13]}  Bc6 {[%clk 0:00:14]} 22. Nxc6 {[%clk 0:01:10]}  bxc6 {[%clk 0:00:13]} 23. Rad1 {[%clk 0:00:58]}  Bb8 {[%clk 0:00:13]} 24. Qd3 {[%clk 0:00:53]}  Nd6 {[%clk 0:00:10]} 25. Bc5 {[%clk 0:00:50]}  Nb7 {[%clk 0:00:05]} 26. Bxf8 {[%clk 0:00:50]}  Qxf8 {[%clk 0:00:06]} 27. Qd7 {[%clk 0:00:41]}  Nd6 {[%clk 0:00:06]} 28. Qxe6+ {[%clk 0:00:40]}  Nf7 {[%clk 0:00:05]} 29. Rd7 {[%clk 0:00:35]}  Bh2+ {[%clk 0:00:01]} 30. Kxh2 {[%clk 0:00:34]}  Qb8+ {[%clk 0:00:02]} 31. Kg1 {[%clk 0:00:34]}  Kh8 {[%clk 0:00:02]} 32. Qxf7 {[%clk 0:00:33]}  Qh2+ {[%clk 0:00:02]} 33. Kxh2 {[%clk 0:00:32]} 1-0


[Site "https://www.chess.com"]

[Event "Titled Tuesday Blitz March 07 Early 2023"]
[White "Grabinsky, Vladimir"]
[Black "Lauridsen, Jesper Morch"]
[WhiteFideId "14107074"]
[BlackFideId "1401890"]
[WhiteElo "2027"]
[BlackElo "2289"]
[Result "0-1"]
[Round "11"]
[TimeControl "180+2"]
[Date "2023.03.07"]
[WhiteClock "0:00:09"]
[BlackClock "0:00:27"]

1. e4 {[%clk 0:02:14]}  e5 {[%clk 0:02:59]} 2. Nf3 {[%clk 0:02:13]}  Nc6 {[%clk 0:02:59]} 3. d4 {[%clk 0:02:13]}  exd4 {[%clk 0:02:59]} 4. c3 {[%clk 0:02:14]}  d5 {[%clk 0:02:57]} 5. exd5 {[%clk 0:02:14]}  Qxd5 {[%clk 0:02:57]} 6. cxd4 {[%clk 0:02:14]}  Bg4 {[%clk 0:02:57]} 7. Be2 {[%clk 0:02:15]}  Bb4+ {[%clk 0:02:47]} 8. Nc3 {[%clk 0:02:14]}  Bxf3 {[%clk 0:02:41]} 9. Bxf3 {[%clk 0:02:14]}  Qc4 {[%clk 0:02:38]} 10. Be2 {[%clk 0:02:14]}  Bxc3+ {[%clk 0:02:35]} 11. bxc3 {[%clk 0:02:11]}  Qxc3+ {[%clk 0:02:36]} 12. Bd2 {[%clk 0:01:40]}  Qxd4 {[%clk 0:02:35]} 13. Qc1 {[%clk 0:01:26]}  O-O-O {[%clk 0:02:23]} 14. Rb1 {[%clk 0:01:18]}  Nf6 {[%clk 0:02:17]} 15. Be3 {[%clk 0:01:15]}  Qe5 {[%clk 0:02:06]} 16. O-O {[%clk 0:01:06]}  h5 {[%clk 0:02:03]} 17. Bf3 {[%clk 0:00:55]}  Ng4 {[%clk 0:01:37]} 18. Bf4 {[%clk 0:00:54]}  Qf6 {[%clk 0:01:37]} 19. Bg5 {[%clk 0:00:41]}  Qd6 {[%clk 0:01:37]} 20. Bf4 {[%clk 0:00:41]}  Nge5 {[%clk 0:01:27]} 21. Bxc6 {[%clk 0:00:33]}  bxc6 {[%clk 0:01:20]} 22. Qb2 {[%clk 0:00:32]}  Nf3+ {[%clk 0:01:11]} 23. gxf3 {[%clk 0:00:22]}  Qxf4 {[%clk 0:01:12]} 24. Qb7+ {[%clk 0:00:19]}  Kd7 {[%clk 0:01:11]} 25. Rfd1+ {[%clk 0:00:20]}  Ke7 {[%clk 0:01:11]} 26. Qxc6 {[%clk 0:00:18]}  Rh6 {[%clk 0:00:59]} 27. Qc5+ {[%clk 0:00:18]}  Rhd6 {[%clk 0:00:56]} 28. Qxc7+ {[%clk 0:00:16]}  R8d7 {[%clk 0:00:55]} 29. Qc5 {[%clk 0:00:15]}  h4 {[%clk 0:00:36]} 30. Re1+ {[%clk 0:00:15]}  Kf6 {[%clk 0:00:36]} 31. Re4 {[%clk 0:00:11]}  Rd1+ {[%clk 0:00:32]} 32. Rxd1 {[%clk 0:00:09]}  Rxd1+ {[%clk 0:00:32]} 33. Kg2 {[%clk 0:00:09]}  h3+ {[%clk 0:00:27]} 34. Kxh3 {[%clk 0:00:10]}  Qxf3+ {[%clk 0:00:27]} 35. Kh4 {[%clk 0:00:09]}  Qxe4+ {[%clk 0:00:27]} 0-1


[Site "https://www.chess.com"]